bitfinex/quotes_BTCUSD_20241103
["timestamp","ask_amount","ask_price","bid_price","bid_amount"]
[1730659678347,0.22179704,67836.0,67834.0,0.147417]
[1730659678592,0.076,67836.0,67835.0,0.147416]
[1730659680190,0.23379704,67836.0,67835.0,0.147416]
[1730659680415,0.22179704,67836.0,67835.0,0.147416]
[1730659680864,0.23479704,67836.0,67835.0,0.147416]
[1730659681077,0.22179704,67836.0,67835.0,0.147416]
[1730659681510,0.23379704,67836.0,67835.0,0.147416]
[1730659682209,0.22179704,67836.0,67835.0,0.147416]
[1730659682445,0.296397,67851.0,67835.0,0.147416]
[1730659682656,0.296397,67851.0,67830.0,0.17927579]
[1730659682657,0.076,67846.0,67843.0,0.147399]
[1730659683832,0.076,67846.0,67836.0,0.294828]
[1730659684050,0.14579704,67843.0,67816.0,0.22614109]
[1730659684273,0.14579704,67843.0,67837.0,0.22114109]
[1730659684274,0.294811,67840.0,67837.0,0.22114109]
[1730659684512,0.14742,67834.0,67830.0,0.22114109]
[1730659684722,0.147423,67832.0,67830.0,0.22114109]
[1730659684948,0.14579704,67831.0,67830.0,0.22114109]
[1730659685162,0.14579704,67831.0,67825.0,0.278191]
[1730659685375,0.14579704,67831.0,67829.0,0.147429]
[1730659685590,0.14579704,67831.0,67826.0,0.294872]
[1730659685835,0.14579704,67831.0,67829.0,0.147429]
[1730659687229,0.14579704,67831.0,67808.0,0.102]
[1730659687230,0.14579704,67831.0,67817.0,0.29491]
[1730659687453,0.147446,67821.0,67820.0,0.22114109]
[1730659687682,0.14579704,67821.0,67820.0,0.22114109]
[1730659687902,0.14579704,67821.0,67812.0,0.442399]
[1730659688155,0.294898,67820.0,67810.0,0.22114109]
[1730659688406,0.147454,67818.0,67814.0,0.147461]
[1730659688664,0.14579704,67817.0,67814.0,0.147461]
[1730659688907,0.14579704,67817.0,67813.0,0.147463]
[1730659689140,0.14579704,67817.0,67812.0,0.294933]
[1730659689339,0.14579704,67817.0,67815.0,0.147458]
[1730659689844,0.14579704,67817.0,67813.0,0.294928]
[1730659690068,0.14579704,67817.0,67814.0,0.14746]
[1730659690290,0.14579704,67817.0,67816.0,0.147457]
[1730659691015,0.15279704,67817.0,67816.0,0.147457]
[1730659691242,0.15279704,67817.0,67798.0,0.22114109]
[1730659691243,0.147494,67799.0,67798.0,0.22114109]
[1730659691489,0.29329104,67799.0,67798.0,0.22114109]
[1730659691904,0.29329104,67799.0,67791.0,0.22114109]
[1730659691905,0.147501,67796.0,67791.0,0.22114109]
[1730659692125,0.29329804,67796.0,67791.0,0.22114109]
[1730659692346,0.295007,67795.0,67786.0,0.442569]
[1730659692576,0.14579704,67796.0,67785.0,0.295049]
[1730659692792,0.04996195,67795.0,67790.0,0.147512]
[1730659693004,0.04996195,67795.0,67784.0,0.51619309]
[1730659693005,0.147513,67791.0,67784.0,0.51619309]
[1730659693235,0.49076699,67795.0,67785.0,0.29505]
[1730659693236,0.295012,67794.0,67785.0,0.29505]
[1730659693473,0.147513,67791.0,67784.0,0.295052]
[1730659693698,0.295015,67793.0,67784.0,0.295052]
[1730659693943,0.295015,67793.0,67773.0,0.100834]
[1730659693944,0.147539,67779.0,67773.0,0.000834]
[1730659694166,0.295054,67784.0,67780.0,0.22114109]
[1730659694167,0.147534,67781.0,67780.0,0.22114109]
[1730659694395,0.17530244,67783.0,67773.0,0.295933]
[1730659694636,0.147532,67782.0,67774.0,0.295098]
[1730659694848,0.32283244,67783.0,67775.0,0.295094]
[1730659695062,0.17530244,67783.0,67774.0,0.295098]
[1730659695276,0.147535,67781.0,67777.0,0.147542]
[1730659695482,0.20932114,67782.0,67777.0,0.147542]
[1730659695690,0.06178914,67782.0,67777.0,0.147542]
[1730659695904,0.45385704,67783.0,67773.0,0.000834]
[1730659695905,0.295075,67780.0,67773.0,0.000834]
[1730659696127,0.295084,67778.0,67773.0,0.000834]
[1730659696354,0.147549,67774.0,67773.0,0.000834]
[1730659696819,0.147545,67776.0,67773.0,0.000834]
[1730659697250,0.14579704,67777.0,67773.0,0.000834]
[1730659697557,0.14579704,67777.0,67773.0,0.148383]
[1730659697770,0.29333904,67777.0,67773.0,0.148384]
[1730659697990,0.011,67776.0,67773.0,0.148384]
[1730659698421,0.0791,67787.0,67775.0,0.22114109]
[1730659698645,0.22114109,67784.0,67775.0,0.0029506]
[1730659698866,0.14579704,67786.0,67776.0,0.442633]
[1730659698867,0.012,67777.0,67776.0,0.442633]
[1730659700123,0.22114109,67788.0,67787.0,0.14752]
[1730659700553,0.14579704,67790.0,67785.0,0.295047]
[1730659700782,0.0486,67791.0,67782.0,0.14753]
[1730659700783,0.147524,67786.0,67782.0,0.14753]
[1730659701052,0.14579704,67785.0,67773.0,0.000834]
[1730659701244,0.14579704,67785.0,67783.0,0.22114109]
[1730659701468,0.14579704,67785.0,67781.0,0.147532]
[1730659701689,0.161519,67788.0,67783.0,0.147528]
[1730659701909,0.0486,67791.0,67775.0,0.22114109]
[1730659702171,0.0486,67791.0,67776.0,0.295089]
[1730659702172,0.19439704,67791.0,67776.0,0.295089]
[1730659702390,0.22114109,67794.0,67776.0,0.295089]
[1730659702628,0.36693813,67794.0,67791.0,0.14751]
[1730659703048,0.14579704,67794.0,67792.0,0.147508]
[1730659703260,0.14579704,67794.0,67793.0,0.147507]
[1730659703477,0.14579704,67794.0,67791.0,0.14751]
[1730659703899,0.15979704,67794.0,67789.0,0.295033]
[1730659704319,0.14579704,67794.0,67792.0,0.147508]
[1730659704535,0.15979704,67794.0,67793.0,0.147507]
[1730659704963,0.14579704,67794.0,67793.0,0.147507]
[1730659705624,0.18323674,67794.0,67789.0,0.295033]
[1730659705864,0.18323674,67794.0,67786.0,0.295043]
[1730659706329,0.18323674,67794.0,67783.0,0.22114109]
[1730659706333,0.18323674,67794.0,67791.0,0.147511]
[1730659706591,0.19723674,67794.0,67791.0,0.147511]
[1730659706799,0.15979704,67794.0,67792.0,0.147509]
[1730659707009,0.14579704,67794.0,67792.0,0.147509]
[1730659707215,0.14579704,67794.0,67793.0,0.147507]
[1730659707440,0.0492,67800.0,67793.0,0.147507]
[1730659707682,0.47421479,67811.0,67793.0,0.147507]
[1730659707683,0.014,67794.0,67793.0,0.147507]
[1730659707907,0.14748,67806.0,67794.0,0.295007]
[1730659708125,0.14748,67806.0,67783.0,0.22614109]
[1730659708126,0.014,67794.0,67788.0,0.295035]
[1730659708352,0.014,67794.0,67793.0,0.147507]
[1730659709223,0.29327904,67805.0,67791.0,0.295024]
[1730659709432,0.29327904,67805.0,67784.0,0.295054]
[1730659709433,0.22114109,67801.0,67784.0,0.295054]
[1730659709643,0.014,67800.0,67799.0,0.147493]
[1730659709855,0.36693813,67801.0,67799.0,0.147493]
[1730659710119,0.14579704,67801.0,67799.0,0.147493]
[1730659710342,0.14579704,67801.0,67784.0,0.295054]
[1730659710343,0.0811,67797.0,67783.0,0.22114109]
[1730659710560,0.147512,67791.0,67790.0,0.22114109]
[1730659710763,0.147512,67791.0,67783.0,0.36866909]
[1730659710764,0.147525,67785.0,67783.0,0.22114109]
[1730659710972,0.295014,67794.0,67783.0,0.22114109]
[1730659710973,0.147527,67784.0,67783.0,0.22114109]
[1730659711185,0.295043,67787.0,67775.0,0.22114109]
[1730659711186,0.147525,67785.0,67777.0,0.295085]
[1730659711400,0.33758204,67784.0,67779.0,0.147537]
[1730659711617,0.33758204,67784.0,67781.0,0.147532]
[1730659711618,0.14579704,67783.0,67781.0,0.147532]
[1730659711830,0.14579704,67783.0,67773.0,0.000834]
[1730659712039,0.14579704,67783.0,67780.0,0.147535]
[1730659712259,0.27997819,67782.0,67775.0,0.147546]
[1730659712480,0.27997819,67782.0,67773.0,0.148384]
[1730659712481,0.0811,67779.0,67773.0,0.148384]
[1730659712703,0.14579704,67778.0,67774.0,0.295098]
[1730659712909,0.14579704,67778.0,67775.0,0.147546]
[1730659713128,0.14579704,67778.0,67777.0,0.147542]
[1730659713341,0.0492,67781.0,67777.0,0.295084]
[1730659713559,0.0492,67781.0,67780.0,0.147536]
[1730659713824,0.006,67778.0,67777.0,0.442626]
[1730659714238,0.0492,67781.0,67777.0,0.442626]
[1730659714239,0.0492,67781.0,67777.0,0.295084]
[1730659714461,0.0492,67781.0,67780.0,0.147536]
[1730659714687,0.0492,67781.0,67778.0,0.29508]
[1730659714688,0.147522,67787.0,67778.0,0.29508]
[1730659714911,0.23502845,67786.0,67782.0,0.14753]
[1730659715348,0.23502845,67786.0,67773.0,0.295932]
[1730659715349,0.23502845,67786.0,67774.0,0.295098]
[1730659715563,0.23502845,67786.0,67776.0,0.22114109]
[1730659715772,0.23502845,67786.0,67783.0,0.147528]
[1730659715773,0.14579704,67786.0,67783.0,0.147528]
[1730659716462,0.14579704,67786.0,67781.0,0.295064]
[1730659716669,0.15979704,67786.0,67783.0,0.147528]
[1730659717099,0.0811,67788.0,67776.0,0.22114109]
[1730659717329,0.014,67786.0,67783.0,0.295058]
[1730659717567,0.014,67786.0,67785.0,0.147524]
[1730659717806,0.014,67786.0,67780.0,0.29507]
[1730659717807,0.161523,67786.0,67780.0,0.29507]
[1730659718024,0.161523,67786.0,67782.0,0.14753]
[1730659718241,0.14579704,67785.0,67784.0,0.147527]
[1730659718891,0.014,67786.0,67785.0,0.147525]
[1730659719108,0.22114109,67805.0,67787.0,0.005]
[1730659719326,0.22114109,67805.0,67804.0,0.147483]
[1730659719760,0.0492,67810.0,67809.0,0.147473]
[1730659721109,0.19499704,67810.0,67809.0,0.147473]
[1730659722338,0.20599704,67810.0,67809.0,0.147473]
[1730659722570,0.19499704,67810.0,67809.0,0.147473]
[1730659722816,0.20799704,67810.0,67809.0,0.147473]
[1730659723304,0.294946,67809.0,67796.0,0.22114109]
[1730659723520,0.147482,67805.0,67803.0,0.22114109]
[1730659723738,0.294954,67807.0,67796.0,0.22114109]
[1730659723739,0.147489,67802.0,67797.0,0.147498]
[1730659723964,0.294959,67806.0,67796.0,0.22114109]
[1730659723965,0.29328704,67801.0,67796.0,0.36864009]
[1730659724207,0.147493,67800.0,67796.0,0.1475]
[1730659724428,0.22139704,67799.0,67788.0,0.22114109]
[1730659724649,0.36889204,67799.0,67794.0,0.147505]
[1730659725085,0.36889204,67799.0,67787.0,0.005]
[1730659725086,0.22139704,67799.0,67787.0,0.005]
[1730659725315,0.295012,67794.0,67789.0,0.22114109]
[1730659725562,0.14751,67792.0,67789.0,0.22114109]
[1730659725783,0.29330704,67792.0,67788.0,0.147518]
[1730659726001,0.14579704,67792.0,67788.0,0.295037]
[1730659726631,0.14579704,67792.0,67790.0,0.147513]
[1730659726881,0.14779704,67792.0,67790.0,0.147513]
[1730659727522,0.14779704,67792.0,67787.0,0.005]
[1730659727732,0.29530704,67792.0,67787.0,0.152518]
[1730659728222,0.29530704,67792.0,67773.0,0.000834]
[1730659728223,0.42597043,67791.0,67773.0,0.000834]
[1730659728484,0.3256,67790.0,67783.0,0.22114109]
[1730659728717,0.147519,67788.0,67776.0,0.22114109]
[1730659728975,0.3256,67790.0,67776.0,0.22114109]
[1730659728976,0.14579704,67787.0,67783.0,0.22114109]
[1730659729228,0.14579704,67787.0,67786.0,0.147523]
[1730659729711,0.009,67791.0,67790.0,0.147514]
[1730659729931,0.14579704,67795.0,67777.0,0.47435979]
[1730659730061,0.14579704,67795.0,67794.0,0.147505]
[1730659730478,0.14579704,67795.0,67792.0,0.442528]
[1730659730684,0.14579704,67795.0,67793.0,0.147506]
[1730659732310,0.15879704,67795.0,67792.0,0.29502]
[1730659732510,0.147507,67794.0,67789.0,0.147516]
[1730659732712,0.14579704,67793.0,67789.0,0.147516]
[1730659733419,0.14579704,67793.0,67792.0,0.14751]
[1730659733665,0.147489,67802.0,67788.0,0.41213667]
[1730659733885,0.0821,67804.0,67799.0,0.147494]
[1730659734119,0.229584,67804.0,67799.0,0.147494]
[1730659734338,0.229584,67804.0,67790.0,0.22114109]
[1730659734339,0.0821,67804.0,67790.0,0.22114109]
[1730659734570,0.29201678,67805.0,67801.0,0.147488]
[1730659734827,0.14579704,67804.0,67801.0,0.147488]
[1730659735282,0.14579704,67804.0,67802.0,0.147487]
[1730659736183,0.15979704,67804.0,67799.0,0.294989]
[1730659736404,0.14579704,67804.0,67791.0,0.295024]
[1730659736557,0.34981278,67804.0,67800.0,0.147492]
[1730659736760,0.34981278,67804.0,67790.0,0.22114109]
[1730659736761,0.15979704,67804.0,67801.0,0.147489]
[1730659736971,0.25,67805.0,67794.0,0.11710267]
[1730659737186,0.25,67805.0,67804.0,0.147483]
[1730659737385,0.0821,67809.0,67807.0,0.147476]
[1730659737589,0.14579704,67808.0,67807.0,0.147476]
[1730659738196,0.25,67811.0,67810.0,0.14747]
[1730659738475,0.38156588,67821.0,67812.0,0.147466]
[1730659738476,0.25,67813.0,67812.0,0.147466]
[1730659739148,0.25,67813.0,67812.0,0.26456867]
[1730659739362,0.22114109,67824.0,67823.0,0.147442]
[1730659739805,0.001636,67825.0,67824.0,0.14744]
[1730659740445,0.001636,67825.0,67824.0,0.36858109]
[1730659740651,0.001636,67825.0,67824.0,0.14744]
[1730659741107,0.001636,67825.0,67824.0,0.4886324]
[1730659741330,0.001636,67825.0,67824.0,0.26454267]
[1730659742503,0.001636,67825.0,67824.0,0.2674909]
[1730659742717,0.010636,67825.0,67824.0,0.2674909]
[1730659742938,0.010636,67825.0,67824.0,0.26454267]
[1730659742939,0.001636,67825.0,67824.0,0.26454267]
[1730659743370,0.001636,67825.0,67824.0,0.14744]
[1730659744949,0.002636,67825.0,67824.0,0.14744]
[1730659745163,0.001636,67825.0,67824.0,0.15038823]
[1730659745367,0.001636,67825.0,67824.0,0.15138823]
[1730659745789,0.001636,67825.0,67824.0,0.52332636]
[1730659746006,0.001636,67825.0,67824.0,0.37653704]
[1730659746238,0.001636,67825.0,67824.0,0.37553704]
[1730659746883,0.001636,67825.0,67824.0,0.38053704]
[1730659747122,0.001636,67825.0,67824.0,0.38253704]
[1730659747333,0.001636,67825.0,67824.0,0.38053704]
[1730659747788,0.001636,67825.0,67824.0,0.48053704]
[1730659748039,0.001636,67825.0,67824.0,0.48253704]
[1730659748252,0.002636,67825.0,67824.0,0.48553704]
[1730659748459,0.22114109,67842.0,67841.0,0.147403]
[1730659748675,0.22114109,67842.0,67833.0,0.005]
[1730659748923,0.14579704,67841.0,67826.0,0.22114109]
[1730659749125,0.14579704,67841.0,67833.0,0.29484]
[1730659749126,0.29320004,67841.0,67833.0,0.29484]
[1730659749347,0.147407,67840.0,67835.0,0.147415]
[1730659749599,0.147407,67840.0,67834.0,0.294834]
[1730659749600,0.29320104,67841.0,67836.0,0.147412]
[1730659749811,0.001636,67844.0,67843.0,0.147399]
[1730659751611,0.011636,67844.0,67843.0,0.148399]
[1730659752026,0.001636,67844.0,67843.0,0.147399]
[1730659752244,0.001636,67844.0,67843.0,0.148399]
[1730659752468,0.008636,67844.0,67843.0,0.148399]
[1730659752733,0.008636,67844.0,67843.0,0.147399]
[1730659752954,0.011636,67844.0,67843.0,0.147399]
[1730659753843,0.011636,67844.0,67830.0,0.17941148]
[1730659754055,0.011636,67844.0,67833.0,0.22114109]
[1730659754056,0.294802,67842.0,67833.0,0.22114109]
[1730659754268,0.294806,67841.0,67833.0,0.22114109]
[1730659754481,0.14579704,67841.0,67828.0,0.294861]
[1730659754702,0.147419,67834.0,67828.0,0.294861]
[1730659754920,0.147419,67834.0,67830.0,0.147426]
[1730659755140,0.3774836,67840.0,67830.0,0.147426]
[1730659755141,0.294815,67839.0,67830.0,0.001]
[1730659755362,0.147419,67834.0,67830.0,0.147425]
[1730659755581,0.22846964,67840.0,67824.0,0.000818]
[1730659755582,0.14579704,67833.0,67824.0,0.000818]
[1730659755789,0.14579704,67833.0,67828.0,0.001]
[1730659755996,0.14579704,67833.0,67824.0,0.000818]
[1730659756211,0.294846,67832.0,67824.0,0.000818]
[1730659756428,0.147435,67827.0,67824.0,0.000818]
[1730659757819,0.147438,67825.0,67824.0,0.000818]
[1730659758037,0.294854,67830.0,67824.0,0.000818]
[1730659758038,0.44065104,67830.0,67824.0,0.000818]
[1730659758260,0.005,67827.0,67824.0,0.000818]
[1730659758754,0.147436,67826.0,67824.0,0.000818]
[1730659759182,0.14579704,67829.0,67824.0,0.001818]
[1730659759622,0.14579704,67829.0,67825.0,0.22114109]
[1730659759832,0.008,67830.0,67829.0,0.147429]
[1730659760945,0.008,67830.0,67829.0,0.15037739]
[1730659761143,0.0457,67842.0,67841.0,0.147403]
[1730659761362,0.22114109,67843.0,67841.0,0.147403]
[1730659761618,0.001636,67844.0,67842.0,0.147399]
[1730659761828,0.001636,67844.0,67840.0,0.147403]
[1730659762039,0.001636,67844.0,67841.0,0.147403]
[1730659762463,0.149033,67844.0,67840.0,0.147404]
[1730659762917,0.001636,67844.0,67839.0,0.294813]
[1730659763132,0.014,67843.0,67842.0,0.147401]
[1730659763581,0.014,67843.0,67841.0,0.001]
[1730659763792,0.147401,67842.0,67841.0,0.001]
[1730659764036,0.29319804,67842.0,67841.0,0.001]
[1730659764260,0.147415,67836.0,67830.0,0.22114109]
[1730659764457,0.147415,67836.0,67831.0,0.147424]
[1730659764666,0.294812,67840.0,67831.0,0.147424]
[1730659764878,0.294812,67840.0,67832.0,0.294845]
[1730659764879,0.14579704,67839.0,67832.0,0.294845]
[1730659765111,0.001636,67844.0,67836.0,0.294825]
[1730659765112,0.149034,67844.0,67836.0,0.294825]
[1730659765319,0.014,67842.0,67841.0,0.001]
[1730659765503,0.14579704,67843.0,67839.0,0.147407]
[1730659765504,0.29319604,67843.0,67839.0,0.147407]
[1730659765768,0.012,67840.0,67834.0,0.294837]
[1730659765981,0.012,67840.0,67837.0,0.147411]
[1730659766188,0.012,67840.0,67836.0,0.294828]
[1730659766189,0.147403,67842.0,67838.0,0.147409]
[1730659766601,0.14579704,67843.0,67834.0,0.294837]
[1730659766809,0.14579704,67843.0,67830.0,0.22114109]
[1730659767020,0.14579704,67843.0,67840.0,0.147405]
[1730659767227,0.147401,67842.0,67832.0,0.737115]
[1730659767444,0.14579704,67843.0,67836.0,0.001]
[1730659767666,0.147402,67842.0,67837.0,0.14741]
[1730659767852,0.147404,67841.0,67836.0,0.147413]
[1730659768099,0.147407,67840.0,67836.0,0.147413]
[1730659768313,0.147403,67841.0,67836.0,0.147412]
[1730659768520,0.147403,67841.0,67836.0,0.148412]
[1730659768944,0.147403,67841.0,67836.0,0.147412]
[1730659769157,0.160403,67841.0,67836.0,0.148412]
[1730659769602,0.013,67841.0,67836.0,0.001]
[1730659769825,0.147407,67840.0,67836.0,0.001]
[1730659770034,0.147407,67840.0,67836.0,0.148413]
[1730659770898,0.147407,67840.0,67836.0,0.147413]
[1730659771315,0.159407,67840.0,67836.0,0.148413]
[1730659771746,0.012,67840.0,67837.0,0.22114109]
[1730659771963,0.012,67840.0,67839.0,0.147407]
[1730659773087,0.012,67840.0,67839.0,0.36854809]
[1730659773304,0.01185,67840.0,67839.0,0.147407]
[1730659773994,0.001636,67840.0,67839.0,0.147407]
[1730659774454,0.013636,67840.0,67839.0,0.147407]
[1730659774694,0.001636,67840.0,67839.0,0.147407]
[1730659775132,0.001636,67840.0,67839.0,0.005]
[1730659775559,0.149041,67840.0,67839.0,0.005]
[1730659775974,0.001636,67840.0,67839.0,0.005]
[1730659776423,0.42351514,67840.0,67839.0,0.005]
[1730659776639,0.14742,67833.0,67832.0,0.22114109]
[1730659777337,0.147427,67830.0,67825.0,0.000818]
[1730659778628,0.151427,67830.0,67825.0,0.000818]
[1730659778855,0.147427,67830.0,67825.0,0.000818]
[1730659779063,0.147427,67830.0,67829.0,0.02317751]
[1730659779281,0.152427,67830.0,67829.0,0.02317751]
[1730659779540,0.147421,67833.0,67829.0,0.148247]
[1730659779791,0.153427,67830.0,67829.0,0.001818]
[1730659779999,0.006,67830.0,67829.0,0.001818]
[1730659780230,0.153427,67830.0,67829.0,0.001818]
[1730659780918,0.153427,67830.0,67829.0,0.000818]
[1730659780919,0.147427,67830.0,67829.0,0.000818]
[1730659781469,0.147427,67830.0,67829.0,0.001818]
[1730659781713,0.009,67833.0,67829.0,0.000818]
[1730659781928,0.009,67833.0,67832.0,0.147423]
[1730659782143,0.147423,67832.0,67829.0,0.001818]
[1730659782561,0.009,67833.0,67829.0,0.001818]
[1730659782777,0.080836,67840.0,67829.0,0.000818]
[1730659782996,0.156421,67833.0,67829.0,0.001818]
[1730659783416,0.147424,67832.0,67829.0,0.001818]
[1730659783626,0.009,67833.0,67829.0,0.001818]
[1730659783855,0.147427,67831.0,67829.0,0.001818]
[1730659784074,0.009,67833.0,67829.0,0.001818]
[1730659784075,0.147427,67830.0,67829.0,0.001818]
[1730659784297,0.147427,67830.0,67829.0,0.000818]
[1730659784517,0.147427,67830.0,67829.0,0.001818]
[1730659784947,0.147427,67830.0,67829.0,0.000818]
[1730659785170,0.21907501,67830.0,67829.0,0.001818]
[1730659785622,0.21907501,67830.0,67829.0,0.000818]
[1730659785863,0.50137205,67830.0,67829.0,0.001818]
[1730659786096,0.55452702,67830.0,67829.0,0.001818]
[1730659786312,0.57110451,67830.0,67829.0,0.001818]
[1730659786526,0.57110451,67830.0,67825.0,0.000818]
[1730659786527,0.52587432,67826.0,67825.0,0.000818]
[1730659786770,1.02480844,67826.0,67825.0,0.000818]
[1730659786973,1.02280844,67826.0,67825.0,0.000818]
[1730659787206,1.15227337,67826.0,67825.0,0.000818]
[1730659787617,1.02280844,67826.0,67825.0,0.000818]
[1730659788031,1.03680844,67826.0,67825.0,0.000818]
[1730659788264,1.02280844,67826.0,67825.0,0.000818]
[1730659788457,1.03680844,67826.0,67825.0,0.000818]
[1730659789553,1.03880844,67826.0,67825.0,0.000818]
[1730659790197,0.8909827,67826.0,67825.0,0.000818]
[1730659790412,0.8326342,67826.0,67825.0,0.000818]
[1730659790621,0.70087418,67826.0,67825.0,0.000818]
[1730659790834,0.54073304,67826.0,67825.0,0.000818]
[1730659791281,0.70748958,67826.0,67825.0,0.000818]
[1730659791497,0.147475,67808.0,67807.0,0.22114109]
[1730659791707,0.29327204,67808.0,67807.0,0.22114109]
[1730659792133,0.29327204,67808.0,67798.0,0.22114109]
[1730659792134,0.147494,67799.0,67798.0,0.22114109]
[1730659792568,0.147499,67797.0,67796.0,0.000818]
[1730659793688,0.2212471,67797.0,67796.0,0.000818]
[1730659794350,0.294978,67802.0,67796.0,0.000818]
[1730659794772,0.147499,67797.0,67796.0,0.000818]
[1730659796199,0.29329604,67797.0,67796.0,0.003818]
[1730659797514,0.147499,67797.0,67796.0,0.000818]
[1730659797720,0.0821,67814.0,67796.0,0.000818]
[1730659797942,0.147489,67802.0,67796.0,0.000818]
[1730659798157,0.147499,67797.0,67796.0,0.000818]
[1730659799023,0.160499,67797.0,67796.0,0.000818]
[1730659799260,0.147499,67797.0,67796.0,0.000818]
[1730659799685,0.158499,67797.0,67796.0,0.000818]
[1730659800344,0.011,67797.0,67796.0,0.000818]
[1730659800549,0.011,67797.0,67796.0,0.148319]
[1730659805215,0.22114109,67810.0,67805.0,0.294963]
[1730659805417,0.22114109,67817.0,67816.0,0.147457]
[1730659805644,0.22114109,67817.0,67797.0,0.005]
[1730659805645,0.18265595,67817.0,67797.0,0.005]
[1730659805859,0.26834109,67824.0,67810.0,0.22114109]
[1730659805860,0.14579704,67816.0,67810.0,0.22114109]
[1730659806080,0.147482,67805.0,67797.0,0.294998]
[1730659806340,0.0827,67813.0,67798.0,0.22114109]
[1730659806557,0.0827,67813.0,67796.0,0.005818]
[1730659806558,0.147499,67797.0,67796.0,0.000818]
[1730659807731,0.294991,67799.0,67796.0,0.000818]
[1730659807967,0.147497,67798.0,67796.0,0.000818]
[1730659808422,0.147499,67797.0,67796.0,0.000818]
[1730659809236,0.442486,67799.0,67796.0,0.000818]
[1730659809483,0.147493,67800.0,67796.0,0.000818]
[1730659809717,0.001,67797.0,67796.0,0.148317]
[1730659809931,0.294972,67803.0,67796.0,0.148318]
[1730659810139,0.007,67797.0,67796.0,0.148318]
[1730659811422,0.147491,67801.0,67796.0,0.148318]
[1730659811625,0.011,67797.0,67796.0,0.000818]
[1730659811865,0.011,67797.0,67796.0,0.148319]
[1730659812800,0.022,67797.0,67796.0,0.148319]
[1730659816061,0.14749,67801.0,67796.0,0.148319]
[1730659816275,0.29328404,67803.0,67796.0,0.000818]
[1730659816497,0.0451,67812.0,67802.0,0.147487]
[1730659816751,0.147478,67807.0,67802.0,0.147487]
[1730659816976,0.14579704,67807.0,67804.0,0.147483]
[1730659817215,0.14579704,67807.0,67802.0,0.294976]
[1730659817702,0.29327504,67807.0,67803.0,0.147485]
[1730659818398,0.29327504,67807.0,67801.0,0.147489]
[1730659818399,0.147479,67806.0,67801.0,0.147489]
[1730659818612,0.147479,67806.0,67802.0,0.147486]
[1730659821275,0.160479,67806.0,67802.0,0.147486]
[1730659821500,0.0818,67820.0,67805.0,0.147481]
[1730659821711,0.0818,67820.0,67803.0,0.00294962]
[1730659821712,0.36857909,67825.0,67818.0,0.294906]
[1730659821918,0.22114109,67825.0,67815.0,0.29492]
[1730659822130,0.0818,67828.0,67817.0,0.294911]
[1730659822326,0.0818,67828.0,67823.0,0.147442]
[1730659822547,0.0818,67828.0,67818.0,0.294906]
[1730659822818,0.0818,67828.0,67813.0,0.11693832]
[1730659822819,0.147439,67825.0,67820.0,0.147449]
[1730659823026,0.147439,67825.0,67820.0,0.147447]
[1730659823296,0.015636,67824.0,67820.0,0.147447]
[1730659823519,0.015636,67824.0,67823.0,0.147442]
[1730659824322,0.001636,67824.0,67823.0,0.147442]
[1730659824491,0.001636,67824.0,67823.0,0.19179241]
[1730659824685,0.010636,67824.0,67823.0,0.48588776]
[1730659824897,0.001636,67824.0,67823.0,0.59987736]
[1730659825415,0.010636,67824.0,67823.0,0.48593904]
[1730659825680,0.001636,67824.0,67823.0,0.60187736]
[1730659825889,0.001636,67824.0,67823.0,0.48493904]
[1730659826116,0.002636,67824.0,67823.0,0.60787736]
[1730659826362,0.001636,67824.0,67823.0,0.60187736]
[1730659827527,0.001636,67830.0,67829.0,0.37636732]
[1730659827743,0.001636,67830.0,67829.0,0.52216436]
[1730659828842,0.002636,67830.0,67829.0,0.52816436]
[1730659829051,0.002636,67830.0,67829.0,0.52216436]
[1730659829509,0.003636,67830.0,67829.0,0.52816436]
[1730659829726,0.003636,67830.0,67829.0,0.52316436]
[1730659830363,0.001636,67840.0,67839.0,0.152407]
[1730659830575,0.001636,67840.0,67839.0,0.51514236]
[1730659831847,0.001636,67840.0,67839.0,0.52014236]
[1730659832098,0.002636,67840.0,67839.0,0.52614236]
[1730659832319,0.002636,67840.0,67839.0,0.52814236]
[1730659832539,0.001636,67840.0,67839.0,0.52214236]
[1730659832724,0.002636,67840.0,67839.0,0.52614236]
[1730659833420,0.002636,67840.0,67839.0,0.52814236]
[1730659833834,0.002636,67840.0,67839.0,0.85198345]
[1730659834046,0.002636,67840.0,67839.0,0.74778068]
[1730659834262,0.073375,67844.0,67843.0,0.282399]
[1730659834473,0.073375,67844.0,67843.0,0.42819604]
[1730659835126,0.22114109,67866.0,67843.0,0.42819604]
[1730659835127,0.22114109,67866.0,67850.0,0.159383]
[1730659835342,0.22114109,67866.0,67850.0,0.40518004]
[1730659835983,0.13,67879.0,67852.0,0.159379]
[1730659836197,0.13,67879.0,67852.0,0.62801436]
[1730659836876,0.00167,67873.0,67866.0,0.147349]
[1730659837088,0.00167,67873.0,67866.0,0.66496866]
[1730659837301,0.00167,67873.0,67866.0,0.66202268]
[1730659837511,0.00167,67873.0,67866.0,0.54308436]
[1730659838803,0.00267,67867.0,67866.0,0.55208436]
[1730659839218,0.00167,67867.0,67866.0,0.54308436]
[1730659840558,0.00267,67867.0,67866.0,0.55208436]
[1730659840765,0.00267,67867.0,67866.0,0.54308436]
[1730659840766,0.00167,67867.0,67866.0,0.54308436]
[1730659841002,0.00167,67867.0,67866.0,0.51008436]
[1730659841222,0.00267,67867.0,67866.0,0.52908436]
[1730659841429,0.00267,67867.0,67866.0,0.52408436]
[1730659841844,0.00267,67867.0,67866.0,0.52908436]
[1730659842073,0.00267,67867.0,67866.0,0.53108436]
[1730659842286,0.00267,67867.0,67866.0,0.52908436]
[1730659842924,0.00267,67867.0,67866.0,0.52408436]
[1730659843380,0.00267,67867.0,67866.0,0.52908436]
[1730659843619,0.00267,67867.0,67866.0,0.256349]